bitfinex-derivatives/quotes_ETHF0:USTF0_20260315
["timestamp","ask_amount","ask_price","bid_price","bid_amount"]
[1773544621966,5.85346402,2098.3,2097.3,5.84262714]
[1773544622264,5.85346402,2098.1,2097.3,5.84262714]
[1773544622465,12.0041237,2098.0,2097.3,5.84262714]
[1773544622667,5.85346402,2097.9,2097.3,5.84262714]
[1773544623166,5.85346402,2098.3,2097.3,5.84262714]
[1773544623364,5.85346402,2098.1,2097.3,5.84262714]
[1773544623565,6.15114106,2098.0,2097.3,5.84262714]
[1773544623964,12.00460508,2098.0,2097.3,5.84262714]
[1773544624163,5.85346402,2098.0,2097.3,5.84262714]
[1773544624865,5.85346402,2098.5,2097.3,5.84262714]
[1773544625166,5.97899244,2098.6,2097.3,5.84262714]
[1773544625167,12.00471374,2098.4,2097.3,5.84262714]
[1773544625366,12.00471374,2098.3,2097.4,40.8]
[1773544625564,5.85346402,2098.3,2097.5,5.67166849]
[1773544626468,5.85346402,2098.1,2097.5,5.67166849]
[1773544628169,5.85346402,2098.5,2097.5,5.67166849]
[1773544628364,5.85346402,2098.3,2097.5,5.67166849]
[1773544630966,5.85346402,2098.3,2097.7,5.67166849]
[1773544631968,5.85346402,2098.3,2097.7,33.05266849]
[1773544632364,5.85346402,2098.1,2097.7,27.381]
[1773544632967,5.85346402,2098.1,2097.7,33.05266849]
[1773544633970,5.85346402,2098.1,2097.8,5.67166849]
[1773544634166,5.85346402,2098.1,2097.8,5.676324]
[1773544634567,5.85346402,2098.1,2097.8,0.00465551]
[1773544635670,5.85346402,2098.1,2097.7,27.381]
[1773544635869,5.85346402,2098.1,2097.7,33.05266849]
[1773544636073,5.85346402,2098.1,2097.8,5.67166849]
[1773544636270,5.85346402,2098.1,2097.7,27.381]
[1773544636465,5.85346402,2098.1,2097.7,27.38646575]
[1773544636970,5.85346402,2098.1,2097.7,24.02838705]
[1773544637570,13.27799244,2098.6,2097.2,5.67166849]
[1773544637571,5.85346402,2097.9,2097.2,5.67166849]
[1773544637774,5.85346402,2097.7,2097.2,5.67166849]
[1773544638573,5.85346402,2097.7,2097.2,5.67515055]
[1773544638870,3.9976769,2098.1,2097.2,5.67515055]
[1773544639071,6.16102662,2098.1,2097.2,5.67515055]
[1773544639277,12.01449064,2098.1,2097.2,5.67515055]
[1773544639575,5.85346402,2098.1,2097.2,5.67515055]
[1773544643970,5.65236022,2098.3,2097.3,0.23836]
[1773544644176,5.65236022,2098.4,2097.4,6.16412002]
[1773544644469,5.65236022,2098.4,2097.3,0.23836]
[1773544644470,5.65236022,2098.4,2097.6,6.16412002]
[1773544644676,0.00571134,2098.6,2097.7,6.16412002]
[1773544644875,5.65236022,2098.5,2097.7,6.16412002]
[1773544649174,5.65807156,2098.6,2097.7,6.16412002]
[1773544655081,0.00571134,2098.6,2097.9,6.16412002]
[1773544655277,5.65236022,2099.5,2098.5,6.16412002]
[1773544655481,5.65236022,2099.5,2098.7,6.16412002]
[1773544655683,2.40173334,2099.5,2098.9,6.16412002]
[1773544655884,2.40173334,2099.5,2099.0,0.74419114]
[1773544656185,2.40583503,2099.5,2099.0,0.00601835]
[1773544659285,2.40583503,2099.5,2099.0,6.17013837]
[1773544659987,2.40583503,2099.5,2099.0,0.00601835]
[1773544660388,2.40583503,2099.5,2098.8,40.8]
[1773544660578,2.40583503,2099.5,2098.6,27.401]
[1773544660781,5.65236022,2099.3,2098.3,6.16412002]
[1773544661485,5.65236022,2099.3,2098.4,40.8]
[1773544662188,5.65236022,2099.3,2098.3,6.16980095]
[1773544662589,5.65236022,2099.3,2098.4,46.96412002]
[1773544666087,5.65236022,2099.3,2098.5,6.16412002]
[1773544667685,5.65236022,2099.3,2098.4,40.8]
[1773544668293,5.65236022,2099.3,2098.4,46.96412002]
[1773544669192,5.65236022,2099.1,2098.3,0.00568093]
[1773544669589,5.65236022,2099.1,2098.3,40.80568093]
[1773544670092,5.65236022,2099.1,2098.3,47.40366482]
[1773544674296,6.60670937,2098.9,2098.3,47.40366482]
[1773544675292,6.60670937,2098.9,2098.3,6.60366482]
[1773544676196,6.60670937,2098.7,2098.3,6.60366482]
[1773544676494,6.60670937,2098.7,2098.3,0.00568093]
[1773544676893,6.60670937,2098.7,2098.3,6.61572728]
[1773544677996,6.60670937,2098.5,2098.0,6.61004635]
[1773544678492,6.60670937,2098.5,2098.0,47.41004635]
[1773544678692,6.60670937,2098.5,2097.9,27.432]
[1773544678897,6.60670937,2098.5,2097.9,34.04204635]
[1773544679098,6.60670937,2098.5,2097.9,34.04789788]
[1773544680697,6.60670937,2098.3,2097.7,6.61004635]
[1773544681599,6.60670937,2098.1,2097.6,27.459]
[1773544681796,6.60670937,2098.1,2097.6,27.4651661]
[1773544681999,6.60670937,2098.1,2097.6,34.07521245]
[1773544682201,6.60670937,2098.1,2097.7,6.61004635]
[1773544682602,6.60670937,2098.3,2097.7,6.61004635]
[1773544686103,1.81670592,2098.2,2097.6,27.4651661]
[1773544686300,6.60670937,2098.1,2097.6,34.07521245]
[1773544687803,6.60670937,2098.1,2097.7,6.61004635]
[1773544690509,1.81670592,2098.0,2097.0,34.15404635]
[1773544690815,6.60670937,2098.1,2097.1,6.61004635]
[1773544691003,6.60670937,2098.0,2097.1,47.41004635]
[1773544691207,6.60670937,2097.8,2097.1,6.61004635]
[1773544691708,6.61208556,2097.8,2097.1,6.61525106]
[1773544692307,6.60670937,2097.6,2097.1,0.00520471]
[1773544692710,6.60670937,2097.6,2097.1,6.61525106]
[1773544694915,6.60670937,2097.4,2096.8,6.61004635]
[1773544696017,6.60670937,2097.4,2096.8,6.61390164]
[1773544697219,6.60670937,2097.4,2096.8,0.00385529]
[1773544697516,6.60670937,2097.2,2096.4,6.61004635]
[1773544698017,6.60670937,2097.2,2096.5,6.61004635]
[1773544698419,6.60670937,2097.2,2096.5,6.6136029]
[1773544702115,6.60670937,2097.2,2096.3,27.412]
[1773544702416,6.21065711,2096.9,2096.0,6.47589726]
[1773544703121,6.21065711,2096.9,2096.1,6.47589726]
[1773544708122,6.21065711,2097.4,2096.1,6.47589726]
[1773544708323,6.21065711,2097.2,2096.2,6.47589726]
[1773544712727,6.21065711,2097.5,2096.2,6.47589726]
[1773544713028,6.21065711,2097.3,2096.2,6.47589726]
[1773544715534,6.21065711,2097.4,2096.5,6.47589726]
[1773544715726,6.21065711,2097.4,2096.7,6.47589726]
[1773544721233,12.165776,2097.3,2096.7,6.47589726]
[1773544721532,6.21065711,2097.3,2096.7,6.47589726]
[1773544722737,6.21065711,2097.4,2096.7,6.47589726]
[1773544723236,5.96014923,2097.3,2096.7,6.47589726]
[1773544723538,3.97853488,2097.7,2096.7,6.47589726]
[1773544723738,6.21065711,2097.6,2096.7,6.47589726]
[1773544723939,12.17094289,2097.5,2096.7,6.47589726]
[1773544724135,5.96028578,2097.4,2096.7,6.47589726]
[1773544726138,12.17094289,2097.4,2096.7,6.47589726]
[1773544726332,6.21065711,2097.4,2096.7,6.47589726]
[1773544726934,5.97865729,2097.8,2096.9,6.47589726]
[1773544726935,0.00537619,2097.8,2096.9,6.47589726]
[1773544727236,5.9732811,2098.1,2096.6,27.44]
[1773544727237,6.21065711,2098.1,2097.2,6.47589726]
[1773544727534,6.21065711,2098.1,2097.3,6.47589726]
[1773544728141,6.2141503,2098.1,2097.3,6.47589726]
[1773544729239,6.2141503,2098.1,2097.2,74.90289726]
[1773544729439,6.2141503,2098.1,2097.3,6.47589726]
[1773544736443,6.19983665,2098.0,2097.3,6.47589726]
[1773544744548,5.66336936,2097.9,2097.3,6.47589726]
[1773544744747,6.19983665,2097.8,2097.3,6.47589726]
[1773544746942,6.19983665,2098.0,2097.3,6.47589726]
[1773544747148,6.19983665,2097.8,2097.3,6.47589726]
[1773544756249,5.62809927,2097.7,2097.3,6.47589726]
[1773544760059,11.82793592,2097.7,2097.3,6.47589726]
[1773544760255,6.19983665,2097.7,2097.3,6.47589726]
[1773544762060,6.38865793,2098.0,2097.3,6.47589726]
[1773544762263,6.38865793,2097.8,2097.3,6.47589726]
[1773544762452,5.6287264,2097.7,2097.3,6.47589726]
[1773544764859,12.01738433,2097.7,2097.3,6.47589726]
[1773544765053,6.38865793,2097.7,2097.3,6.47589726]
[1773544765863,6.38865793,2098.0,2097.3,6.47589726]
[1773544766064,6.38865793,2097.8,2097.3,6.47589726]
[1773544766357,5.62911327,2097.7,2097.3,6.47589726]
[1773544772167,6.38865793,2097.8,2097.3,6.47589726]
[1773544774262,5.63347653,2097.7,2097.3,6.47589726]
[1773544778368,6.38865793,2097.6,2097.3,6.47589726]
[1773544778973,6.38865793,2097.6,2097.2,33.87635186]
[1773544779167,6.38865793,2097.6,2097.3,6.24935186]
[1773544781364,6.38865793,2097.9,2097.3,6.24935186]
[1773544781572,6.38865793,2097.7,2097.3,6.24935186]
[1773544782774,6.38865793,2097.7,2097.3,5.50875194]
[1773544782974,6.38865793,2097.7,2097.2,27.627]
[1773544783174,6.38865793,2097.7,2097.2,33.87635186]
[1773544783673,6.38865793,2097.5,2097.0,6.24935186]
[1773544784872,6.38865793,2097.8,2097.0,6.24935186]
[1773544785072,5.9732811,2098.5,2097.7,6.24935186]
[1773544785273,13.62914765,2098.6,2097.1,0.23838]
[1773544785274,6.38865793,2098.6,2097.9,6.24935186]
[1773544785474,6.38865793,2098.6,2098.0,6.24935186]
[1773544786174,6.39419578,2098.6,2098.0,6.25482102]
[1773544787978,6.38865793,2098.5,2097.9,28.116]
[1773544788376,6.38865793,2098.4,2097.8,6.24935186]
[1773544788873,6.38865793,2098.4,2097.8,6.2549878]
[1773544791883,8.20690863,2098.4,2097.8,0.00563594]
[1773544792178,6.35525695,2098.3,2097.8,0.00563594]
[1773544794182,1.8182507,2098.2,2097.6,28.145]
[1773544794381,6.35525695,2098.1,2097.6,28.145]
[1773544794683,6.35525695,2098.1,2097.5,6.18529442]
[1773544795182,6.35525695,2098.1,2097.5,6.19108123]
[1773544801083,3.99422815,2098.4,2097.6,6.18529442]
[1773544801284,3.99422815,2098.4,2097.8,6.18529442]
[1773544801285,6.35525695,2098.4,2097.8,6.18529442]
[1773544827816,3.99422815,2098.5,2097.8,6.18529442]
[1773544828010,11.670766,2098.6,2097.8,6.18529442]
[1773544828215,6.15662655,2098.5,2097.8,6.18529442]
[1773544829112,1.55947279,2098.6,2097.8,6.18529442]
[1773544829315,6.15662655,2099.2,2098.3,5.99864424]
[1773544829512,6.15662655,2099.2,2098.4,5.99864424]
[1773544830312,6.16018546,2099.2,2098.4,5.99864424]
[1773544831112,6.16018546,2099.2,2098.3,46.79864424]
[1773544831313,6.15662655,2098.9,2098.1,5.99864424]
[1773544831508,6.15662655,2098.8,2097.9,5.99864424]
[1773544833715,6.15662655,2098.6,2097.9,5.99864424]
[1773544835420,6.15662655,2098.5,2097.9,5.99864424]
[1773544853029,13.95162655,2098.5,2097.9,5.99864424]
[1773544853229,5.60452451,2098.4,2097.9,5.99864424]
[1773544858639,5.60452451,2098.7,2097.9,5.99864424]
[1773544858834,5.60452451,2098.6,2097.9,5.99864424]
[1773544866638,13.47452451,2098.6,2097.9,5.99864424]
[1773544866940,5.60452451,2098.5,2097.9,5.99864424]
[1773544871037,5.9732811,2098.8,2097.9,5.99864424]
[1773544871238,5.60808342,2099.2,2098.2,5.61096174]
[1773544871544,0.00355891,2099.2,2098.4,5.61096174]
[1773544872141,5.60808342,2099.2,2098.4,5.61096174]
[1773544875844,5.60452451,2099.1,2098.4,5.61096174]
[1773544878647,5.60452451,2099.1,2098.3,40.8]
[1773544878851,5.60452451,2099.1,2098.2,5.61096174]
[1773544878852,5.60452451,2099.0,2097.9,5.61096174]
[1773544879353,5.60452451,2099.0,2098.0,5.61096174]
[1773544881354,5.60452451,2098.8,2098.0,5.61096174]
[1773544883556,5.18439505,2098.6,2098.0,5.61096174]
[1773544887460,5.18439505,2098.4,2097.9,5.30484368]
[1773544901670,5.18439505,2098.4,2097.8,33.46184368]
[1773544901869,5.18439505,2098.4,2097.9,5.30484368]
[1773544921485,5.18439505,2098.4,2097.8,5.44162337]
[1773544924587,5.3033852,2098.0,2097.6,6.31831437]
[1773544929790,9.29112749,2098.4,2097.8,5.44162337]
[1773544929986,5.3033852,2098.4,2097.8,5.44162337]
[1773544951002,5.3033852,2098.4,2097.6,4.85609509]
[1773544952500,4.80535828,2098.2,2097.2,5.95112326]
[1773544952704,4.80535828,2097.9,2097.0,10.80721835]
[1773544952906,4.80535828,2097.9,2097.1,4.85609509]
[1773544953608,4.80535828,2097.9,2097.1,4.85994311]
[1773544956609,4.80535828,2097.9,2097.1,0.00384802]
[1773544957006,4.80535828,2097.9,2097.1,4.85994311]
[1773544960909,4.80535828,2098.1,2097.1,4.85994311]
[1773544961107,4.80535828,2098.2,2097.1,4.85994311]
[1773544972113,4.76179082,2098.0,2097.1,4.85994311]
[1773544972610,4.76179082,2097.9,2097.1,4.64586244]
[1773544976717,4.76179082,2097.9,2097.1,0.00384802]
[1773544977021,4.76179082,2097.9,2097.1,4.64586244]
[1773544977820,8.74953311,2098.1,2097.1,4.64586244]
[1773544978123,4.76179082,2098.2,2097.3,4.64201442]
[1773544995530,4.76179082,2098.1,2097.3,4.64201442]
[1773544999637,4.76179082,2098.1,2097.2,4.64201442]
[1773545000134,4.76179082,2098.0,2097.2,4.64201442]
[1773545002132,4.76179082,2098.0,2097.1,0.00384802]
[1773545002333,4.76179082,2098.0,2097.1,4.56314289]
[1773545002539,4.76179082,2098.0,2097.1,0.00384802]
[1773545002737,4.76179082,2098.0,2097.1,4.56314289]
[1773545002938,4.52981525,2097.9,2097.1,4.56314289]
[1773545005131,4.52981525,2097.9,2097.1,0.00384802]
[1773545005336,4.52981525,2097.9,2097.1,4.56314289]
[1773545006141,4.52981525,2097.8,2097.1,4.56314289]
[1773545007144,12.87681525,2097.8,2097.1,4.56314289]
[1773545007344,4.52981525,2097.7,2097.1,4.56314289]
[1773545007540,4.53585436,2097.7,2097.1,4.56314289]
[1773545011446,4.52981525,2097.5,2097.1,4.56314289]
[1773545016544,4.52981525,2097.3,2096.9,4.55929487]
[1773545017548,4.52981525,2097.3,2096.9,0.00439411]
[1773545017849,4.52981525,2097.3,2096.7,4.55929487]
[1773545018747,4.52981525,2096.9,2096.4,5.24314985]
[1773545018947,4.52981525,2097.1,2096.4,2.88573261]
[1773545019750,4.52981525,2097.1,2096.4,2.88996156]
[1773545024653,6.34847168,2097.1,2096.4,2.88996156]
[1773545024848,4.52981525,2097.0,2096.4,2.88996156]
[1773545026457,7.33626248,2096.9,2095.8,4.55929487]
[1773545026658,4.52981525,2096.8,2095.8,4.55929487]
[1773545026858,4.52981525,2096.8,2095.9,4.55929487]
[1773545027358,4.52981525,2096.8,2095.9,4.56318019]
[1773545028759,4.52981525,2096.6,2095.9,4.56318019]
[1773545032251,4.52981525,2096.6,2095.9,45.36318019]
[1773545032454,4.52981525,2096.6,2096.0,4.33771656]
[1773545033462,4.52981525,2096.6,2095.9,0.00388532]
[1773545033758,4.52981525,2096.6,2095.9,4.34160188]
[1773545035158,5.9732811,2097.3,2096.4,4.33771656]
[1773545035159,4.44052924,2097.0,2096.4,4.33771656]
[1773545038863,4.44052924,2096.9,2096.2,4.33771656]
[1773545041366,4.44052924,2097.1,2096.4,4.33771656]
[1773545042066,4.44052924,2097.1,2096.6,4.33771656]
[1773545042366,4.44052924,2097.5,2096.6,4.33771656]
[1773545042566,9.95857382,2097.4,2096.6,4.33771656]
[1773545042767,4.44052924,2097.4,2096.6,4.33771656]
[1773545042966,0.00603911,2097.7,2097.0,4.33771656]
[1773545043164,4.44656835,2097.7,2097.0,4.33771656]
[1773545048360,0.00603911,2097.7,2097.1,4.33771656]
[1773545049570,4.44656835,2097.7,2097.1,4.33771656]
[1773545054577,4.44052924,2098.0,2097.3,4.33771656]
[1773545055677,4.44534157,2098.0,2097.3,4.33771656]
[1773545076087,0.00481233,2098.0,2097.3,4.33771656]
[1773545076696,4.10172317,2098.0,2097.3,4.33771656]
[1773545079895,4.09691084,2098.3,2097.4,4.36689853]
[1773545080193,3.98774229,2098.5,2097.6,4.36689853]
[1773545080194,4.09691084,2098.5,2097.6,4.36689853]
[1773545080501,4.09691084,2098.6,2097.7,4.36689853]
[1773545080705,4.09691084,2098.8,2097.9,4.36689853]
[1773545080999,4.10082134,2098.8,2097.9,4.37169775]
[1773545082799,4.09691084,2098.4,2097.7,45.16689853]
[1773545083001,4.09691084,2098.4,2097.7,4.36689853]
[1773545083900,4.09691084,2098.4,2097.7,4.37124676]
[1773545094513,3.956182,2098.1,2097.4,50.6685833]
[1773545094715,3.956182,2098.1,2097.4,44.7204765]
[1773545095612,3.956182,2098.1,2097.4,3.92538973]
[1773545096206,3.956182,2098.1,2096.7,10.13074737]
[1773545096207,3.956182,2097.4,2096.8,5.9481068]
[1773545096404,3.956182,2097.4,2096.6,3.9204765]
[1773545096607,3.956182,2097.7,2096.6,28.596]
[1773545096812,3.956182,2097.7,2096.8,3.9204765]
[1773545097207,3.956182,2097.7,2096.8,3.92509813]
[1773545101310,3.956182,2098.1,2097.0,3.9204765]
[1773545101515,3.956182,2098.1,2097.1,3.9204765]
[1773545101716,3.956182,2098.1,2097.3,3.9204765]
[1773545102312,3.956182,2098.1,2097.5,3.9204765]
[1773545106720,3.956182,2098.1,2097.3,44.7204765]
[1773545106918,3.956182,2098.1,2097.2,28.708]
[1773545107419,3.956182,2098.1,2097.2,32.6284765]
[1773545108609,3.956182,2098.1,2097.2,28.708]
[1773545108817,3.956182,2097.4,2096.8,3.92509813]
[1773545113726,3.956182,2097.4,2096.4,44.7204765]
[1773545113921,3.956182,2097.4,2096.5,3.9204765]
[1773545114827,3.956182,2097.4,2096.5,3.92472789]
[1773545125235,3.98575539,2097.2,2096.5,3.92472789]
[1773545125435,3.98915275,2097.2,2096.5,3.92472789]
[1773545129533,1.82003549,2097.1,2096.5,3.92472789]
[1773545129838,3.98575539,2097.0,2096.5,3.92472789]
[1773545130634,3.98575539,2097.0,2096.5,0.00425139]
[1773545131235,3.98575539,2096.8,2096.2,40.8]
[1773545131435,3.98575539,2096.8,2096.1,32.94225752]
[1773545131641,3.98575539,2096.8,2096.2,4.11725752]
[1773545132250,3.98575539,2096.8,2096.2,4.12318997]
[1773545134048,3.98575539,2096.6,2095.9,4.11725752]
[1773545135348,3.98575539,2096.6,2095.9,4.12176903]
[1773545136046,3.98575539,2096.4,2095.9,4.12176903]
[1773545143450,3.98575539,2096.8,2095.9,4.12176903]
[1773545143652,3.98575539,2096.8,2096.0,4.11725752]
[1773545144750,3.98575539,2096.7,2096.0,4.11725752]
[1773545150556,3.59041507,2096.9,2096.0,4.11725752]
[1773545150752,3.59041507,2096.9,2096.2,3.74435884]
[1773545153463,7.80306791,2097.2,2096.2,3.74435884]
[1773545153665,9.38305417,2097.1,2096.2,3.74435884]
[1773545153861,5.57112591,2097.0,2096.2,3.74435884]
[1773545154158,9.38305417,2097.0,2096.2,3.74435884]
[1773545154363,3.81192826,2097.0,2096.2,3.74435884]
[1773545154562,3.81192826,2097.0,2096.3,3.57829832]
[1773545155164,3.81192826,2096.8,2096.3,3.57829832]
[1773545155866,3.81192826,2097.0,2096.3,3.57829832]
[1773545158766,3.99113965,2097.2,2096.2,28.644]
[1773545158767,3.81532562,2097.2,2096.6,3.57829832]
[1773545158962,9.3869436,2097.1,2096.6,3.57829832]
[1773545159162,3.81192826,2097.1,2096.6,3.57829832]
[1773545161569,3.81532562,2097.2,2096.6,3.57829832]
[1773545167072,3.81532562,2097.2,2096.3,3.57829832]
[1773545169567,3.81192826,2096.8,2096.3,3.57829832]
[1773545175078,3.81192826,2096.8,2096.2,28.644]
[1773545175371,3.81192826,2096.8,2095.8,7.43389764]
[1773545175372,3.81192826,2096.3,2095.8,2.97075494]
[1773545176375,3.81192826,2096.3,2095.8,2.9768223]
[1773545180775,3.81192826,2096.7,2095.9,3.57829832]
[1773545185985,4.07115713,2096.5,2095.9,3.57829832]
[1773545186675,4.07115713,2096.7,2095.9,3.57829832]
[1773545187285,4.07115713,2096.9,2096.1,4.09821505]
[1773545194393,4.07115713,2096.7,2095.9,4.09821505]
[1773545199692,4.07115713,2096.9,2095.9,4.09821505]
[1773545199897,4.07115713,2097.1,2095.9,4.09821505]
[1773545200101,9.64616751,2097.0,2095.9,4.09821505]
[1773545200295,4.07115713,2097.0,2095.9,4.09821505]
[1773545210301,4.07115713,2097.0,2096.0,3.88214824]
[1773545217704,3.99378191,2097.2,2096.0,3.88214824]
[1773545217705,3.99451475,2096.8,2096.0,3.88214824]
[1773545220606,7.9848993,2097.0,2096.0,3.88214824]
[1773545220811,7.98829666,2097.2,2096.0,3.88214824]
[1773545221009,7.98829666,2097.2,2096.1,3.81317518]
[1773545221010,3.99451475,2097.0,2096.1,3.81317518]
[1773545224914,3.99791211,2097.2,2096.1,5.63331505]
[1773545225117,3.99791211,2097.2,2096.3,3.81317518]
[1773545229521,3.99791211,2097.2,2096.4,3.81317518]
[1773545230026,3.99451475,2097.0,2096.2,3.81317518]
[1773545230228,3.99451475,2096.8,2096.2,3.81317518]
[1773545231924,3.99451475,2096.8,2096.0,3.81317518]
[1773545232130,3.99451475,2096.6,2095.8,3.81924254]
[1773545232929,5.81465462,2096.6,2095.8,0.00606736]
[1773545233125,3.99451475,2096.4,2095.8,3.81924254]
[1773545233618,3.99451475,2096.4,2095.6,3.81317518]
[1773545234628,3.99451475,2096.4,2095.6,3.81659353]
[1773545261245,9.23480896,2096.3,2095.6,3.81659353]
[1773545261438,3.64184934,2096.3,2095.6,3.81659353]
[1773545262543,3.64184934,2096.3,2095.7,3.82531176]
[1773545268244,3.64184934,2096.1,2095.6,32.57573011]
[1773545268446,3.64184934,2096.1,2095.6,28.75041835]
[1773545268650,3.64184934,2096.1,2095.6,32.57573011]
[1773545270146,3.64184934,2096.1,2095.7,3.24281017]
[1773545276449,3.64184934,2096.1,2095.6,28.75041835]
[1773545277053,3.45032033,2095.9,2095.6,0.00341835]
[1773545278150,3.45032033,2095.9,2095.5,3.42421805]
[1773545279049,3.45032033,2095.9,2095.5,3.42796683]
[1773545280847,3.45032033,2096.2,2095.5,3.42796683]
[1773545281047,3.45032033,2096.6,2096.0,3.42421805]
[1773545284449,3.45032033,2096.5,2095.9,28.938]
[1773545284850,3.45032033,2096.5,2095.9,32.36221805]
[1773545289351,3.45032033,2096.7,2096.0,3.42421805]
[1773545297355,3.45032033,2096.5,2096.0,3.42421805]
[1773545298553,3.45032033,2096.7,2096.0,3.42421805]
[1773545299957,3.45032033,2096.9,2096.0,3.42421805]
[1773545300155,9.00830097,2096.8,2096.0,3.42421805]
[1773545300360,5.55798064,2096.7,2096.0,3.42421805]
[1773545300553,9.00830097,2096.7,2096.0,3.42421805]
[1773545300758,3.45032033,2096.7,2096.0,3.42421805]
[1773545308059,5.56227693,2096.6,2096.0,3.42421805]
[1773545308265,3.165544,2096.5,2096.0,3.42421805]
[1773545312566,3.165544,2096.5,2095.8,3.24203838]
[1773545321484,3.165544,2096.5,2095.6,7.43389764]
[1773545321679,3.165544,2096.3,2095.5,3.24578716]
[1773545322177,3.165544,2096.1,2095.5,3.24578716]
[1773545325183,3.165544,2096.1,2095.5,0.00374878]
[1773545326784,3.165544,2096.1,2095.2,3.24203838]
[1773545327783,3.165544,2096.1,2095.2,3.24679276]
[1773545329086,3.165544,2095.9,2095.2,3.24679276]
[1773545345602,2.95769316,2096.1,2095.2,3.24679276]
[1773545345896,2.95769316,2096.0,2095.2,3.24679276]
[1773545350103,2.95769316,2095.8,2095.2,3.24679276]
[1773545354606,3.99932676,2096.1,2095.2,3.24679276]
[1773545354800,2.95769316,2096.0,2095.2,3.24679276]
[1773545355002,5.58010456,2095.9,2095.2,3.24679276]
[1773545355506,8.53779772,2095.9,2095.2,3.24679276]
[1773545355705,2.95769316,2095.9,2095.2,3.24679276]
[1773545356206,5.58224747,2095.8,2095.2,3.24679276]
[1773545357007,6.95701992,2096.2,2095.3,1.82059943]
[1773545357304,2.95769316,2096.3,2095.5,2.95051755]
[1773545358702,2.95769316,2096.3,2095.6,2.95051755]
[1773545359704,2.95769316,2096.6,2095.6,2.95051755]
[1773545361110,2.95769316,2096.6,2095.7,2.95051755]
[1773545380925,3.0824343,2096.5,2095.7,2.95051755]
[1773545385225,3.0824343,2096.5,2095.8,3.15210749]
[1773545386935,3.0824343,2096.5,2095.7,9.14842163]
[1773545387534,3.0824343,2096.5,2095.8,3.15210749]
[1773545402649,3.99701077,2096.5,2095.3,6.00807814]
[1773545402847,1.82068776,2095.7,2095.2,2.97952275]
[1773545403045,1.82413822,2095.7,2095.2,2.97952275]
[1773545403846,0.68093926,2095.6,2095.2,2.97952275]
[1773545405550,1.82413822,2095.7,2095.2,2.97952275]
[1773545405551,0.44429491,2095.7,2095.2,2.97952275]
[1773545405755,0.44429491,2095.7,2094.4,30.54568776]
[1773545405756,0.43609007,2095.2,2094.4,3.11338065]
[1773545406051,0.41893562,2095.4,2094.7,3.11704405]
[1773545406250,8.1074022,2095.4,2094.7,3.11704405]
[1773545406455,2.23962338,2095.4,2094.7,3.11704405]
[1773545406656,0.41893562,2095.1,2094.0,4.93773181]
[1773545406950,2.227298,2095.0,2094.1,3.11704405]
[1773545407153,0.40661024,2095.1,2094.1,3.11704405]
[1773545408355,0.36460597,2094.9,2094.1,3.11704405]
[1773545408852,0.36460597,2094.9,2093.8,2.9033874]
[1773545409047,0.5889807,2094.7,2093.8,2.9033874]
[1773545409254,0.5889807,2094.7,2093.9,3.01750018]
[1773545410151,0.5889807,2094.7,2093.9,3.02341526]
[1773545410351,0.68164969,2094.6,2093.9,3.02341526]
[1773545411254,0.74331964,2094.4,2093.9,3.02341526]
[1773545411658,0.74331964,2094.6,2093.9,3.02341526]
[1773545412256,8.348,2094.9,2093.9,3.02341526]
[1773545412257,0.8724418,2094.4,2093.9,3.02341526]
[1773545413352,2.68319509,2094.7,2093.9,3.02341526]
[1773545413758,0.86250733,2094.6,2093.9,3.02341526]
[1773545413955,1.1852701,2094.8,2094.0,1.82068776]
[1773545414160,0.24205065,2094.8,2094.1,2.97476837]
[1773545414458,0.94321945,2094.8,2094.1,2.97476837]
[1773545414660,1.82068776,2094.9,2094.1,2.97476837]
[1773545414858,2.76390721,2094.9,2094.1,2.97476837]
[1773545415156,0.98719686,2094.8,2094.1,2.97476837]
[1773545415461,0.98719686,2095.0,2094.1,2.97476837]
[1773545415958,1.2240944,2095.0,2094.1,2.97476837]
[1773545416158,0.98719686,2095.0,2094.1,2.97476837]
[1773545418065,1.0162477,2094.6,2094.1,2.97476837]
[1773545420762,1.02934875,2094.8,2094.1,2.97476837]
[1773545422766,0.90517641,2095.0,2094.1,2.97476837]
[1773545423066,0.88889209,2094.8,2094.1,2.97476837]
[1773545423461,2.70957985,2094.9,2094.1,2.97476837]
[1773545424366,0.87367505,2095.0,2094.1,2.97476837]
[1773545424565,0.87367505,2095.0,2094.3,2.95014246]
[1773545426668,0.86046564,2095.2,2094.5,2.95014246]
[1773545427868,2.69666674,2095.1,2094.5,2.95014246]
[1773545429864,0.87597898,2095.1,2094.5,2.95014246]
[1773545430070,6.27611834,2095.2,2094.5,2.95014246]
[1773545430265,0.83125939,2095.5,2094.7,2.95014246]
[1773545431769,2.65194715,2095.5,2094.7,2.95014246]
[1773545431969,6.04195111,2095.4,2094.7,2.95014246]
[1773545433571,0.83125939,2095.5,2094.7,2.95014246]
[1773545435671,6.88827779,2095.5,2094.7,2.95014246]
[1773545435871,6.0570184,2095.4,2094.7,2.95014246]
[1773545436066,3.593114,2095.3,2094.7,2.95014246]
[1773545436273,2.17720953,2095.6,2094.7,2.95014246]
[1773545437669,3.12242434,2095.7,2094.7,2.95014246]
[1773545440465,3.12242434,2095.7,2094.9,2.95014246]
[1773545451572,0.00345046,2095.7,2094.9,2.95014246]
[1773545452670,0.00345046,2095.7,2095.1,3.29205229]
[1773545452872,3.27215332,2095.7,2095.1,3.29205229]
[1773545459473,3.27215332,2095.7,2095.0,40.8]
[1773545459679,3.26870286,2095.5,2095.0,44.09205229]
[1773545459875,3.26870286,2095.5,2095.1,3.29205229]
[1773545462286,3.26870286,2095.6,2095.1,3.29205229]
[1773545462582,5.86003049,2095.5,2095.1,3.29205229]
[1773545465285,9.12873335,2095.5,2095.1,3.29205229]
[1773545465486,3.26870286,2095.5,2095.1,3.29205229]
[1773545476696,3.26870286,2095.6,2095.1,3.29205229]
[1773545476989,0.00345046,2095.7,2095.1,3.29205229]
[1773545483892,3.04045619,2096.3,2095.5,3.15683244]
[1773545484800,3.04628212,2096.3,2095.5,3.16026345]
[1773545491405,0.00582593,2096.3,2095.5,3.16026345]
[1773545491608,3.04045619,2096.8,2095.8,3.15683244]
[1773545492014,3.04045619,2096.8,2095.5,0.00343101]
[1773545492015,3.04045619,2096.8,2095.6,3.15683244]
[1773545492315,3.3875385,2096.8,2095.6,3.15683244]
[1773545492514,3.39301492,2096.8,2095.6,3.15683244]
[1773545493013,3.04045619,2096.7,2095.6,3.15683244]
[1773545495617,3.04045619,2096.4,2095.6,3.15683244]
[1773545508524,3.04045619,2096.7,2095.9,3.15683244]
[1773545509320,3.04045619,2096.6,2095.9,3.15683244]
[1773545509818,3.32926733,2096.7,2095.9,3.15683244]
[1773545510925,0.00547642,2096.8,2095.9,3.15683244]
[1773545511622,5.64809335,2096.8,2096.1,3.31575411]
[1773545511824,0.00547642,2096.8,2096.1,3.31575411]
[1773545512120,7.00550353,2097.2,2096.4,1.82099655]
[1773545512322,7.00550353,2097.2,2096.0,40.8]
[1773545512323,3.03093446,2097.2,2096.5,3.31575411]
[1773545513422,3.03683584,2097.2,2096.5,3.31575411]